bitfinex/quotes_SOLUSD_20260201
["timestamp","ask_amount","ask_price","bid_price","bid_amount"]
[1769964264898,13.44335235,101.64,101.6,14.06196747]
[1769964265107,13.44335235,101.64,101.61,9.84149832]
[1769964265313,9.3088529,101.63,101.6,9.84249496]
[1769964266103,13.44335235,101.64,101.6,14.06240604]
[1769964266298,9.3088529,101.64,101.6,14.06240604]
[1769964267712,13.44335235,101.64,101.6,14.06240604]
[1769964268091,13.97140123,101.66,101.6,34.44879417]
[1769964268412,13.44335235,101.66,101.61,4.21991108]
[1769964268742,23.27924939,101.67,101.61,4.21991108]
[1769964268916,9.3088529,101.66,101.61,4.21991108]
[1769964269112,4.13449945,101.69,101.63,9.3088529]
[1769964269314,13.44335235,101.71,101.66,4.21991108]
[1769964269516,9.3088529,101.72,101.66,4.21991108]
[1769964270023,13.44335235,101.72,101.66,4.21991108]
[1769964270216,13.44335235,101.72,101.68,9.83477576]
[1769964270419,4.13449945,101.72,101.68,9.83477576]
[1769964270604,13.44335235,101.72,101.68,34.42171517]
[1769964270912,13.96207915,101.76,101.69,4.21991108]
[1769964271224,9.3088529,101.75,101.7,4.21991108]
[1769964271419,13.44335235,101.76,101.7,4.21991108]
[1769964271618,9.3088529,101.71,101.68,9.83477576]
[1769964271925,9.3088529,101.72,101.68,14.05468684]
[1769964273426,9.3088529,101.71,101.67,14.05534598]
[1769964273722,35.16995172,101.77,101.69,4.21991108]
[1769964273927,9.3088529,101.73,101.69,4.21991108]
[1769964274830,9.3088529,101.73,101.69,14.05318045]
[1769964276243,9.3088529,101.7,101.65,4.21991108]
[1769964276448,9.3088529,101.68,101.64,38.65342688]
[1769964276723,9.3088529,101.69,101.65,4.21991108]
[1769964277110,9.3088529,101.69,101.66,9.8367106]
[1769964277423,9.3088529,101.68,101.66,9.8367106]
[1769964278820,9.3088529,101.69,101.66,14.08789882]
[1769964279535,9.3088529,101.69,101.65,9.83719473]
[1769964279737,9.3088529,101.69,101.65,14.08838295]
[1769964279937,9.3088529,101.7,101.66,4.25118822]
[1769964280621,9.3088529,101.69,101.66,14.08725334]
[1769964281220,13.49537832,101.71,101.66,38.67902984]
[1769964281429,9.3088529,101.7,101.66,38.67902984]
[1769964282538,9.3088529,101.7,101.63,14.09026426]
[1769964282539,13.41206645,101.67,101.63,14.09026426]
[1769964282724,9.3088529,101.66,101.63,14.09026426]
[1769964284127,4.10321355,101.67,101.63,14.09026426]
[1769964284328,13.41206645,101.67,101.63,14.09026426]
[1769964284532,13.41206645,101.67,101.63,38.68929997]
[1769964285031,9.3088529,101.68,101.64,4.49533644]
[1769964285830,4.10321355,101.69,101.64,4.49533644]
[1769964286034,9.3088529,101.68,101.64,4.49533644]
[1769964286642,9.3088529,101.67,101.64,4.49533644]
[1769964286838,9.3088529,101.67,101.64,14.33310256]
[1769964287419,9.3088529,101.66,101.63,9.83937356]
[1769964289448,9.3088529,101.66,101.63,4.49533644]
[1769964289634,9.3088529,101.68,101.63,4.49533644]
[1769964290650,9.3088529,101.69,101.63,4.49533644]
[1769964291548,19.1411538,101.71,101.65,4.49533644]
[1769964291849,9.3088529,101.71,101.66,4.49533644]
[1769964292046,13.41206645,101.72,101.66,4.49533644]
[1769964292352,9.3088529,101.7,101.66,4.49533644]
[1769964292653,13.41206645,101.71,101.66,4.49533644]
[1769964293144,9.3088529,101.71,101.66,4.49533644]
[1769964293344,9.3088529,101.71,101.67,14.33107953]
[1769964293551,9.3088529,101.71,101.67,38.92043725]
[1769964294833,13.41206645,101.71,101.67,38.92043725]
[1769964295230,4.10321355,101.72,101.67,38.92043725]
[1769964295451,9.3088529,101.71,101.67,38.92043725]
[1769964296444,9.3088529,101.71,101.68,4.49533644]
[1769964296947,9.3088529,101.71,101.69,9.83380863]
[1769964297733,4.10321355,101.72,101.69,9.83380863]
[1769964297933,13.41206645,101.72,101.69,9.83380863]
[1769964298261,4.10321355,101.71,101.69,9.83380863]
[1769964298457,13.41206645,101.71,101.69,9.83380863]
[1769964298856,4.10321355,101.71,101.69,9.83380863]
[1769964299031,13.41206645,101.72,101.68,9.83477576]
[1769964299357,9.83034563,101.73,101.69,4.49533644]
[1769964299358,9.3088529,101.73,101.69,4.49533644]
[1769964299745,13.41206645,101.74,101.69,4.49533644]
[1769964300250,13.41206645,101.73,101.69,4.49533644]
[1769964300455,4.10321355,101.73,101.69,4.49533644]
[1769964300653,20.2576247,101.77,101.7,4.49533644]
[1769964300953,9.3088529,101.72,101.69,4.49533644]
[1769964301161,9.3088529,101.72,101.69,14.32841182]
[1769964301345,13.41206645,101.73,101.69,14.32841182]
[1769964301855,13.41206645,101.76,101.71,4.49533644]
[1769964302046,9.3088529,101.74,101.71,4.49533644]
[1769964302234,13.41206645,101.76,101.71,4.49533644]
[1769964302559,6.32785959,101.77,101.74,4.49533644]
[1769964303061,6.32785959,101.77,101.75,9.82800982]
[1769964303254,13.62206679,101.83,101.77,4.49533644]
[1769964303447,13.62206679,101.83,101.78,4.49533644]
[1769964303654,13.62206679,101.81,101.76,31.81533644]
[1769964303849,13.62206679,101.79,101.75,34.39803439]
[1769964304057,13.62206679,101.78,101.75,9.82800982]
[1769964304253,4.31321389,101.78,101.75,9.82800982]
[1769964304653,13.62206679,101.78,101.75,9.82800982]
[1769964304858,13.62206679,101.76,101.73,9.82928597]
[1769964305058,4.31321389,101.8,101.74,9.82886724]
[1769964305362,13.62206679,101.77,101.73,9.82969209]
[1769964305662,13.62206679,101.77,101.73,14.32502853]
[1769964305853,13.62206679,101.77,101.73,38.89988353]
[1769964306053,13.62206679,101.76,101.73,9.82969209]
[1769964306463,4.2881318,101.78,101.74,4.49533644]
[1769964306966,13.62206679,101.8,101.75,4.49533644]
[1769964307262,23.44442738,101.81,101.77,9.82607841]
[1769964307467,9.3088529,101.8,101.77,9.82607841]
[1769964307761,23.44442738,101.81,101.77,9.82607841]
[1769964307939,23.44442738,101.81,101.77,14.20529395]
[1769964308148,4.31321389,101.81,101.77,38.77048998]
[1769964308445,4.28527661,101.78,101.74,4.37921554]
[1769964308646,13.59412951,101.79,101.74,4.37921554]
[1769964309152,13.59412951,101.79,101.75,14.20680566]
[1769964309460,9.3088529,101.8,101.76,4.37921554]
[1769964309665,13.59412951,101.8,101.76,4.37921554]
[1769964309867,13.59412951,101.79,101.75,38.77683023]
[1769964310049,13.59412951,101.8,101.76,4.37921554]
[1769964310756,4.28527661,101.8,101.76,4.37921554]
[1769964310952,13.59412951,101.79,101.75,38.77683023]
[1769964311753,9.3088529,101.82,101.76,4.37921554]
[1769964311953,13.59412951,101.83,101.77,9.3088529]
[1769964312153,13.59412951,101.83,101.78,4.37921554]
[1769964312358,13.59412951,101.82,101.78,4.37921554]
[1769964312659,13.59412951,101.81,101.76,4.37921554]
[1769964312962,4.28527661,101.81,101.77,4.37921554]
[1769964313163,4.28527661,101.83,101.77,4.37921554]
[1769964313364,11.69747695,101.84,101.75,110.83766383]
[1769964313365,11.18666398,101.84,101.8,4.37921554]
[1769964313563,1.87781108,101.84,101.8,4.37921554]
[1769964313748,0.2,101.86,101.81,4.37921554]
[1769964313948,0.2,101.86,101.82,4.37921554]
[1769964314154,9.5088529,101.86,101.82,4.37921554]
[1769964314454,0.2,101.86,101.82,4.37921554]
[1769964314966,13.59412951,101.84,101.8,4.37921554]
[1769964315165,4.28527661,101.84,101.8,4.37921554]
[1769964315369,13.59412951,101.84,101.81,9.82221785]
[1769964315576,13.59412951,101.85,101.8,38.75992037]
[1769964315873,13.59412951,101.84,101.8,38.75992037]
[1769964316162,4.28527661,101.85,101.81,4.37921554]
[1769964316564,0.2,101.86,101.82,4.37921554]
[1769964317160,13.79412951,101.86,101.82,4.37921554]
[1769964317551,13.79412951,101.86,101.83,9.82028871]
[1769964317752,13.59412951,101.84,101.8,4.37921554]
[1769964317976,13.59412951,101.82,101.79,9.82408467]
[1769964318161,13.59412951,101.82,101.78,4.37921554]
[1769964318474,13.59412951,101.82,101.7,49.16000622]
[1769964318475,13.59412951,101.81,101.76,4.37921554]
[1769964318665,4.28527661,101.8,101.76,4.37921554]
[1769964319058,5.36086188,101.84,101.78,9.824674]
[1769964319059,9.3088529,101.82,101.78,9.824674]
[1769964319569,9.3088529,101.83,101.78,38.76667201]
[1769964319764,9.3088529,101.84,101.79,4.37921554]
[1769964321058,13.59412951,101.82,101.76,56.24509548]
[1769964321295,9.3088529,101.79,101.74,4.37921554]
[1769964321455,9.3088529,101.77,101.72,4.37921554]
[1769964321655,9.3088529,101.76,101.72,4.37921554]
[1769964322164,9.3088529,101.74,101.7,4.37921554]
[1769964322365,9.3088529,101.73,101.68,4.37921554]
[1769964322562,13.59412951,101.74,101.71,9.83182882]
[1769964322761,13.59412951,101.75,101.71,9.8314488]
[1769964322967,13.59412951,101.77,101.73,4.37921554]
[1769964323170,9.3088529,101.77,101.73,4.37921554]
[1769964323571,9.3088529,101.76,101.73,14.20909225]
[1769964324478,9.2904657,101.76,101.73,14.20909225]
[1769964324984,9.2904657,101.77,101.73,14.20909225]
[1769964325376,13.57574231,101.76,101.72,9.83030642]
[1769964325583,9.2904657,101.74,101.71,14.21044781]
[1769964325973,9.2904657,101.73,101.71,9.83123227]
[1769964326172,9.2904657,101.74,101.71,9.83123227]
[1769964326479,9.2904657,101.73,101.7,14.21170868]
[1769964326684,9.2904657,101.72,101.69,9.83346617]
[1769964327682,9.2904657,101.73,101.69,14.21268171]
[1769964327863,9.2904657,101.73,101.7,4.37921554]
[1769964328269,19.11953513,101.74,101.7,4.37921554]
[1769964328794,14.11135502,101.77,101.7,4.37921554]
[1769964328984,9.2904657,101.77,101.72,4.37921554]
[1769964329368,13.57574231,101.77,101.73,9.829942]
[1769964329574,9.82550924,101.78,101.74,4.37921554]
[1769964329575,19.11563899,101.78,101.74,4.37921554]
[1769964329982,13.57574231,101.79,101.74,4.37921554]
[1769964330285,13.57574231,101.78,101.74,4.37921554]
[1769964331186,13.57574231,101.78,101.74,14.20748392]
[1769964331582,24.55857382,101.8,101.74,14.20748392]
[1769964331583,13.57574231,101.8,101.75,4.37921554]
[1769964331777,9.2904657,101.79,101.75,4.37921554]
[1769964331983,9.2904657,101.77,101.74,9.82826838]
[1769964332187,9.2904657,101.78,101.75,4.37921554]
[1769964332379,14.10932104,101.8,101.75,4.37921554]
[1769964332380,9.2904657,101.79,101.75,4.37921554]
[1769964332587,4.28527661,101.84,101.78,4.37921554]
[1769964332773,4.28527661,101.84,101.74,34.40070793]
[1769964332774,9.2904657,101.84,101.79,13.66968124]
[1769964333294,9.4904657,101.86,101.81,14.20143339]
[1769964333466,19.30796992,101.86,101.81,38.75697803]
[1769964333867,9.4904657,101.86,101.81,38.75697803]
[1769964334068,9.2904657,101.85,101.81,38.75697803]
[1769964334284,13.77574231,101.86,101.81,38.75697803]
[1769964335587,13.57574231,101.84,101.81,9.82221785]
[1769964335768,9.2904657,101.85,101.81,9.82221785]
[1769964336085,0.2,101.86,101.82,4.37921554]
[1769964336302,9.4904657,101.86,101.82,4.37921554]
[1769964336977,0.2,101.86,101.82,4.37921554]
[1769964337288,13.77574231,101.86,101.81,38.75697803]
[1769964337590,9.2904657,101.85,101.81,38.75697803]
[1769964337778,13.60625541,101.84,101.79,28.82334455]
[1769964337987,13.60625541,101.84,101.8,9.82239805]
[1769964338290,13.60625541,101.84,101.8,14.08667646]
[1769964338788,13.60625541,101.83,101.8,9.82239805]
[1769964338987,9.2904657,101.84,101.8,9.82239805]
[1769964339184,23.42514669,101.85,101.81,9.82198744]
[1769964339364,13.60625541,101.84,101.8,4.26427841]
[1769964339566,13.60625541,101.84,101.8,14.08699201]
[1769964340196,9.2904657,101.83,101.8,14.08699201]
[1769964340593,9.2904657,101.84,101.81,4.26427841]
[1769964340778,9.2904657,101.83,101.8,9.8227136]
[1769964341097,9.2904657,101.83,101.79,14.0879816]
[1769964341275,9.2904657,101.83,101.8,14.08715934]
[1769964342292,13.60625541,101.81,101.76,60.38543786]
[1769964342473,13.60625541,101.81,101.77,14.08981158]
[1769964342679,9.2904657,101.79,101.76,9.8268548]
[1769964342896,9.2904657,101.81,101.77,4.26427841]
[1769964343391,9.2904657,101.81,101.77,14.08980142]
[1769964345693,13.44318176,101.78,101.74,13.91322978]
[1769964345897,9.2904657,101.77,101.74,9.82893177]
[1769964346086,9.2904657,101.77,101.73,13.91422656]
[1769964346286,9.2904657,101.75,101.72,9.83052811]
[1769964346992,9.2904657,101.73,101.7,13.9165717]
[1769964347307,9.2904657,101.75,101.71,13.9161194]
[1769964348105,9.2904657,101.74,101.71,13.9161194]
[1769964348795,9.2904657,101.75,101.72,4.08429801]
[1769964349505,9.2904657,101.76,101.72,4.08429801]
[1769964349892,4.15271606,101.8,101.73,4.08429801]
[1769964350101,9.2904657,101.78,101.74,4.08429801]
[1769964350286,9.2904657,101.78,101.75,9.82800982]
[1769964350491,9.2904657,101.79,101.76,4.08429801]
[1769964351083,9.2904657,101.82,101.77,4.08429801]
[1769964351680,13.44318176,101.83,101.78,4.08429801]
[1769964351892,9.2904657,101.83,101.78,4.08429801]
[1769964352201,9.2904657,101.82,101.78,4.08429801]
[1769964352399,9.2904657,101.82,101.78,13.90884126]
[1769964352601,9.2904657,101.82,101.78,38.47162373]
[1769964352907,9.2904657,101.82,101.76,9.2904657]
[1769964352908,9.2904657,101.8,101.77,13.91023791]
[1769964353105,9.2904657,101.79,101.76,9.82666133]
[1769964353307,9.2904657,101.78,101.75,13.91194134]
[1769964353994,9.2904657,101.78,101.72,36.5904657]
[1769964353995,9.2904657,101.78,101.73,13.91375749]
[1769964354201,9.2904657,101.78,101.74,4.08429801]
[1769964354389,9.2904657,101.77,101.74,4.08429801]
[1769964354808,9.2904657,101.79,101.75,4.08429801]
[1769964356784,9.2904657,101.79,101.76,9.82704402]
[1769964359308,9.2904657,101.79,101.76,4.08429801]
[1769964360211,9.2904657,101.79,101.74,38.48571338]
[1769964360412,9.2904657,101.79,101.75,4.08429801]
[1769964361108,9.2904657,101.83,101.78,4.08429801]
[1769964361545,24.74403461,101.86,101.8,4.08429801]
[1769964361546,0.2,101.86,101.8,4.08429801]
[1769964361712,9.4904657,101.86,101.82,4.08429801]
[1769964362093,0.2,101.86,101.82,4.08429801]
[1769964362307,0.2,101.86,101.83,4.08429801]
[1769964362728,9.4904657,101.86,101.81,4.08429801]
[1769964362910,0.2,101.86,101.82,13.37476371]
[1769964363115,0.2,101.86,101.83,4.08429801]
[1769964363505,0.2,101.86,101.83,13.9040706]
[1769964363902,0.2,101.86,101.84,4.08429801]
[1769964364719,0.2,101.86,101.82,13.9050549]
[1769964364923,9.4904657,101.86,101.83,4.08429801]
[1769964365126,13.44318176,101.84,101.79,4.08429801]
[1769964365330,9.2904657,101.82,101.77,4.08429801]
[1769964365526,19.11193891,101.82,101.78,13.90896151]
[1769964365732,4.35271606,101.86,101.8,4.08429801]
[1769964365911,9.2904657,101.85,101.8,4.08429801]
[1769964366111,9.2904657,101.84,101.8,4.08429801]
[1769964367014,9.2904657,101.82,101.78,13.90918864]
[1769964367605,9.2904657,101.82,101.79,4.0667908]
[1769964368925,19.11081186,101.83,101.8,4.0667908]
[1769964369133,9.2904657,101.81,101.78,13.89157502]
[1769964369309,9.2904657,101.82,101.78,13.89157502]
[1769964369510,9.2904657,101.83,101.79,13.89066366]
[1769964370340,9.2904657,101.83,101.8,4.0667908]
[1769964372544,19.11099181,101.83,101.8,4.0667908]
[1769964372707,9.2904657,101.82,101.78,13.89155145]
[1769964373212,9.2904657,101.82,101.79,13.89082753]
[1769964374235,9.2904657,101.82,101.79,4.0667908]
[1769964374415,19.11190643,101.82,101.79,4.0667908]
[1769964375116,9.81932443,101.84,101.8,4.0667908]
[1769964375328,9.2904657,101.82,101.78,28.62907809]
[1769964375526,13.53378528,101.82,101.78,13.89139591]
[1769964375926,13.53378528,101.85,101.8,4.0667908]
[1769964376533,9.4904657,101.86,101.82,4.0667908]
[1769964376714,0.2,101.86,101.82,4.0667908]
[1769964377935,19.30821251,101.86,101.82,4.0667908]
[1769964378140,13.53378528,101.84,101.8,13.88954866]
[1769964378514,13.53378528,101.82,101.78,4.0667908]
[1769964378721,23.35511253,101.82,101.78,13.89158215]
[1769964379024,9.2904657,101.81,101.77,13.89263067]
[1769964379449,9.2904657,101.85,101.8,4.0667908]
[1769964379747,18.53614717,101.86,101.8,4.0667908]
[1769964379748,9.2904657,101.84,101.8,4.0667908]
[1769964379916,13.53378528,101.84,101.8,4.0667908]
[1769964380534,13.53378528,101.84,101.8,13.88937197]
[1769964380714,9.2904657,101.83,101.8,13.88937197]
[1769964381117,13.53378528,101.81,101.76,28.63238524]
[1769964381443,9.2904657,101.79,101.76,13.89367892]
[1769964382038,9.2904657,101.8,101.76,13.89367892]
[1769964382238,9.2904657,101.79,101.76,13.89367892]
[1769964383038,9.2904657,101.8,101.76,13.89367892]
[1769964384828,9.2904657,101.8,101.77,4.0667908]
[1769964385032,9.2904657,101.81,101.77,4.0667908]
[1769964385540,9.82162023,101.82,101.78,4.0667908]
[1769964385541,9.2904657,101.82,101.78,4.0667908]
[1769964385731,9.2904657,101.83,101.78,4.0667908]
[1769964386567,19.09735736,101.84,101.79,13.89093855]
[1769964386729,9.27752271,101.81,101.77,4.0667908]
[1769964387226,9.27752271,101.8,101.77,4.0667908]
[1769964387428,9.27752271,101.8,101.76,13.89305595]
[1769964387624,9.27752271,101.8,101.77,13.89282914]
[1769964392029,9.27752271,101.8,101.77,9.82603834]
[1769964392227,23.34408768,101.8,101.76,19.63535798]
[1769964392436,9.27752271,101.8,101.77,13.89283494]
[1769964393353,9.27752271,101.81,101.78,4.0667908]
[1769964393532,9.8207888,101.83,101.78,4.0667908]
[1769964393738,9.27752271,101.82,101.78,4.0667908]
[1769964393947,13.52084229,101.79,101.76,15.56854794]
[1769964394266,5.36086188,101.82,101.76,15.56854794]
[1769964394267,9.27752271,101.8,101.77,13.89276736]
[1769964394734,9.27752271,101.8,101.77,9.82597656]
[1769964395056,9.27752271,101.8,101.76,9.8088188]
[1769964395057,9.27752271,101.79,101.76,19.6353625]
[1769964395442,9.27752271,101.8,101.76,19.6353625]
[1769964396841,4.24331958,101.78,101.7,53.23024329]
[1769964397053,9.27752271,101.74,101.7,4.0667908]
[1769964397236,9.27752271,101.74,101.71,13.89866573]
[1769964397638,9.27752271,101.75,101.71,13.89866573]
[1769964397832,9.27752271,101.76,101.72,4.18869785]
[1769964398249,9.27752271,101.75,101.72,4.18869785]
[1769964399344,19.1049372,101.76,101.72,14.01937016]
[1769964399553,9.27752271,101.76,101.73,4.18869785]
[1769964399747,9.27752271,101.8,101.74,4.18869785]
[1769964399951,9.27752271,101.81,101.76,13.46622056]
[1769964400249,13.49506628,101.82,101.77,4.18869785]
[1769964400557,13.49506628,101.82,101.73,31.57527085]
[1769964400558,9.27752271,101.83,101.79,4.18869785]
[1769964401250,9.27752271,101.83,101.79,14.01236668]
[1769964401445,19.09816944,101.83,101.79,14.01277064]
[1769964401651,19.09816944,101.83,101.79,4.18869785]
[1769964401859,23.31466138,101.84,101.8,4.18869785]
[1769964402040,9.27752271,101.84,101.8,4.18869785]
[1769964402357,9.27752271,101.83,101.8,4.18869785]
[1769964403738,9.27752271,101.83,101.79,24.56036938]
[1769964404255,13.69506628,101.86,101.8,9.27752271]
[1769964404958,0.2,101.86,101.82,9.27752271]
[1769964405155,1e-08,101.86,101.83,9.27752271]
[1769964405461,1e-08,101.86,101.82,9.27752271]
[1769964405646,1e-08,101.86,101.84,14.24393596]
[1769964407745,0.2,101.88,101.85,4.42461153]
[1769964407938,1e-08,101.88,101.86,4.42461153]
[1769964409245,0.2,101.91,101.88,4.42461153]
[1769964409655,0.2,101.94,101.91,9.81257972]
[1769964409852,4.45573004,101.94,101.91,9.81257972]
[1769964410065,4.45573004,101.95,101.91,48.04616327]
[1769964410560,4.45573004,101.95,101.91,38.76864056]
[1769964410762,4.25573004,101.94,101.9,14.23775135]
[1769964410960,4.25573004,101.94,101.9,48.04913078]
[1769964411164,0.2,101.97,101.93,4.42461153]
[1769964411377,1e-08,101.97,101.95,9.27752271]
[1769964411667,1e-08,101.98,101.94,13.70213424]
[1769964411864,1e-08,101.98,101.95,9.80872976]
[1769964412057,1e-08,101.98,101.95,34.33055418]
[1769964412576,4.25573005,101.98,101.95,9.80872976]
[1769964412767,1e-08,101.98,101.95,9.80872976]
[1769964413074,4.25573005,101.98,101.95,9.80872976]
[1769964413251,1e-08,101.98,101.95,48.03268842]
[1769964413573,1e-08,101.98,101.95,9.80872976]
[1769964414264,1e-08,102.0,101.97,13.70213424]
[1769964414581,1e-08,102.0,101.96,4.42461153]
[1769964414755,1e-08,102.0,101.96,13.70213424]
[1769964415458,1e-08,102.0,101.97,9.27752271]
[1769964415659,1e-08,102.0,101.98,9.27752271]
[1769964416060,1e-08,102.0,101.99,9.80488283]
[1769964416957,1e-08,102.0,101.96,36.53752271]
[1769964417157,1e-08,102.0,101.96,40.96213424]
[1769964417360,1e-08,102.0,101.98,9.80575331]
[1769964417559,1e-08,102.0,101.98,34.32036401]
[1769964417756,1e-08,102.0,101.98,9.80575331]
[1769964417956,4.25573004,101.99,101.94,9.27752271]
[1769964418254,4.25573004,101.99,101.95,34.33055418]
[1769964418552,4.25573004,101.97,101.94,9.8092463]
[1769964418760,1e-08,102.0,101.94,23.51138054]
[1769964418761,4.25573004,101.99,101.94,23.51138054]
[1769964419070,4.25573004,101.99,101.95,9.27752271]
[1769964419371,4.25573004,101.99,101.94,48.03561047]
[1769964419770,4.25573004,101.99,101.95,13.70213424]
[1769964419962,4.25573004,101.99,101.96,9.27752271]
[1769964420167,4.25573004,101.99,101.96,9.80776775]
[1769964420551,4.25573004,101.99,101.96,34.32718713]
[1769964420759,4.25573004,101.99,101.96,43.60470984]
[1769964420961,10.39209299,102.03,101.99,4.42461153]
[1769964421274,1e-08,102.03,102.01,13.70213424]
[1769964421576,4.57197104,102.09,102.03,13.70213424]
[1769964421767,9.47752271,102.11,102.06,9.27752271]
[1769964421958,0.2,102.11,102.07,9.27752271]
[1769964422157,0.2,102.11,102.07,9.79624527]
[1769964422353,9.27752271,102.08,102.03,9.80063202]
[1769964422556,9.27752271,102.08,102.03,9.80061264]
[1769964422761,9.27752271,102.05,102.01,9.80296049]
[1769964422980,9.27752271,102.04,101.98,38.21508744]
[1769964423156,9.27752271,102.07,102.02,9.27752271]
[1769964423473,25.39747099,102.11,102.06,13.70213424]
[1769964423773,4.25573004,102.06,102.0,14.2285296]
[1769964424077,4.25573004,102.02,101.99,9.80484775]
[1769964424273,4.25573004,102.02,101.98,23.50797852]
[1769964424462,23.33399157,102.04,101.98,48.02258922]
[1769964424663,13.53325275,102.04,101.99,13.70213424]
[1769964424877,23.33344131,102.04,101.99,13.70213424]
[1769964425477,23.3333421,102.04,101.99,13.70213424]
[1769964425687,13.53325275,102.03,101.99,4.42461153]
[1769964425978,4.25573004,102.01,101.96,13.70213424]
[1769964426171,4.25573004,102.01,101.97,9.80653146]
[1769964426368,4.25573004,102.0,101.96,9.8074255]
[1769964426598,13.53325275,101.99,101.94,13.70213424]
[1769964426878,4.25573004,102.01,101.97,4.42461153]
[1769964427086,13.53325275,102.01,101.96,38.75174313]
[1769964427774,13.53325275,102.01,101.96,48.02926584]
[1769964427980,13.34529144,101.98,101.94,4.21363844]
[1769964428159,4.06776873,101.98,101.94,9.80969197]
[1769964428358,23.1511456,101.98,101.94,9.80969197]
[1769964428568,23.1511456,101.98,101.93,13.49116115]
[1769964428569,4.06776873,101.96,101.93,9.81063017]
[1769964430079,13.34529144,101.96,101.92,9.81140559]
[1769964430582,19.08521045,101.97,101.92,14.02504403]
[1769964430892,9.27752271,101.94,101.88,4.21363844]
[1769964431064,9.27752271,101.92,101.88,14.0287176]
[1769964431260,13.34529144,101.92,101.88,14.0287176]
[1769964431679,13.34529144,101.92,101.88,9.81507916]
[1769964431887,4.06776873,101.92,101.88,4.21363844]
[1769964432188,13.34529144,101.94,101.89,4.21363844]
[1769964432491,9.27752271,101.92,101.88,9.81493293]
[1769964432786,4.06776873,101.93,101.89,9.81443777]
[1769964434964,13.34529144,101.92,101.88,9.81511995]
[1769964435285,9.27752271,101.92,101.88,9.81511995]
[1769964436485,13.34529144,101.92,101.88,9.81511995]
[1769964436868,9.27752271,101.91,101.87,4.21363844]
[1769964437070,4.06776873,101.89,101.86,9.81685704]
[1769964437389,13.34529144,101.9,101.86,9.81685704]
[1769964437766,4.06776873,101.9,101.87,9.81639053]
[1769964437966,13.34529144,101.91,101.87,14.03002897]
[1769964440191,13.34529144,101.93,101.88,4.21363844]
[1769964440378,4.06776873,101.93,101.89,4.21363844]
[1769964440995,4.06776873,101.97,101.9,4.21363844]
[1769964441182,4.06776873,101.96,101.91,13.49116115]
[1769964441573,4.06776873,101.95,101.92,9.81161695]
[1769964441769,23.15428227,101.95,101.9,9.81311342]
[1769964441977,9.27752271,101.94,101.91,9.81235324]
[1769964442184,13.34529144,101.94,101.91,9.81235324]
[1769964442384,4.06776873,101.96,101.91,47.8349637]
[1769964442872,4.06776873,101.95,101.91,38.55744099]
[1769964443282,13.34529144,101.95,101.91,9.81235324]
[1769964443687,4.06776873,101.95,101.91,14.02599168]
[1769964443900,4.06776873,101.95,101.91,38.55744099]
[1769964444294,13.34529144,101.95,101.91,38.55744099]
[1769964445009,13.34529144,101.93,101.88,4.21363844]
[1769964445171,13.34529144,101.93,101.89,9.81402657]
[1769964445582,4.06776873,101.93,101.89,9.81402657]
[1769964446595,19.08751484,101.94,101.89,9.81402657]
[1769964446596,13.34529144,101.95,101.9,4.21363844]
[1769964446778,4.06776873,101.95,101.9,13.49116115]
[1769964446979,13.34529144,101.95,101.9,4.21363844]
[1769964447292,4.06776873,101.94,101.9,4.21363844]
[1769964447969,13.34529144,101.94,101.91,9.81257972]
[1769964448368,13.32520524,101.94,101.91,9.81257972]
[1769964449099,4.06776873,101.94,101.91,9.81257972]
[1769964449791,9.25743651,101.97,101.92,4.21363844]
[1769964449989,9.25743651,101.97,101.93,9.81065437]
[1769964450389,19.06438477,101.97,101.93,9.81065437]
[1769964450995,9.25743651,101.94,101.91,9.81251148]
[1769964451993,9.25743651,101.96,101.92,14.02522108]
[1769964452186,13.32520524,101.97,101.92,38.55426346]
[1769964452790,9.25743651,101.98,101.93,4.21363844]
[1769964452995,13.32520524,101.98,101.94,4.21363844]
[1769964453197,9.25743651,101.99,101.94,4.21363844]
[1769964453395,23.12962391,102.0,101.95,4.21363844]
[1769964453793,13.32520524,101.99,101.95,4.21363844]
[1769964454106,23.13148596,101.98,101.94,9.80969197]
[1769964454403,23.13148596,101.98,101.94,14.02333041]
[1769964454595,4.06776873,101.98,101.94,14.02333041]
[1769964454796,4.06776873,101.98,101.94,38.54756034]
[1769964454995,13.32520524,101.98,101.94,38.54756034]
[1769964455308,13.32520524,102.0,101.95,4.21363844]
[1769964455608,13.32520524,101.99,101.95,4.21363844]
[1769964456006,13.32520524,101.99,101.94,24.52422993]
[1769964456207,23.13019761,101.99,101.94,24.52422993]
[1769964456424,13.32520524,101.98,101.92,9.25743651]
[1769964457193,13.32520524,101.98,101.94,9.80969197]
[1769964457407,23.13157289,101.98,101.93,34.33691265]
[1769964458010,23.13157289,101.98,101.93,38.71606328]
[1769964458314,4.1481228,101.96,101.93,34.33691265]
[1769964458904,13.40555931,101.98,101.93,38.71606328]
[1769964459714,4.1481228,101.98,101.94,4.37915063]
[1769964461016,9.80435867,102.0,101.92,49.05741636]
[1769964461017,13.40555931,102.02,101.97,4.37915063]
[1769964462314,13.40555931,102.01,101.96,4.37915063]
[1769964462716,4.1481228,101.99,101.95,38.70970481]
[1769964463016,4.1481228,102.01,101.97,14.18595655]